[Event "*** Titled Tuesday Blitz"]
[Site "Chess.com"]
[Date "2019.02.05"]
[Round "1"]
[White "Polish_fighter3000"]
[Black "talento10"]
[Result "1-0"]
[WhiteElo "3016"]
[BlackElo "2459"]
[TimeControl "180+2"]
[EndTime "13:07:30 PST"]
[Termination "Polish_fighter3000 won by resignation"]

1. e4 {[%clk 0:02:58.3]} 1... c5 {[%clk 0:02:51.8]} 2. Nf3 {[%clk 0:02:58.6]}
2... d6 {[%clk 0:02:53.1]} 3. d4 {[%clk 0:02:58.1]} 3... cxd4 {[%clk 0:02:55]}
4. Nxd4 {[%clk 0:02:59.9]} 4... Nf6 {[%clk 0:02:56.4]} 5. Nc3 {[%clk 0:03:01.5]}
5... g6 {[%clk 0:02:33.5]} 6. Be3 {[%clk 0:03:00.6]} 6... Bg7 {[%clk 0:02:33.6]}
7. f3 {[%clk 0:03:01.3]} 7... O-O {[%clk 0:02:35]} 8. Qd2 {[%clk 0:03:02.7]}
8... Nc6 {[%clk 0:02:36.8]} 9. Bc4 {[%clk 0:02:57.1]} 9... Ne5 {[%clk
0:02:37.1]} 10. Bb3 {[%clk 0:02:57.8]} 10... Bd7 {[%clk 0:02:38.8]} 11. Bh6
{[%clk 0:02:52.3]} 11... Rc8 {[%clk 0:02:34.1]} 12. h4 {[%clk 0:02:51.1]} 12...
Nc4 {[%clk 0:01:23.2]} 13. Bxc4 {[%clk 0:02:49.9]} 13... Bxh6 {[%clk 0:01:24.4]}
14. Qxh6 {[%clk 0:02:45.4]} 14... Rxc4 {[%clk 0:01:25]} 15. Nde2 {[%clk
0:02:38.9]} 15... Qa5 {[%clk 0:01:24]} 16. O-O-O {[%clk 0:02:30.8]} 16... Rfc8
{[%clk 0:01:22]} 17. Kb1 {[%clk 0:01:47]} 17... Be6 {[%clk 0:01:09.6]} 18. Qd2
{[%clk 0:00:59.2]} 18... Qa6 {[%clk 0:01:08]} 19. h5 {[%clk 0:00:54.8]} 19...
Nxh5 {[%clk 0:01:01.8]} 20. g4 {[%clk 0:00:45.6]} 20... Nf6 {[%clk 0:01:00.7]}
21. a4 {[%clk 0:00:23.4]} 21... Qc6 {[%clk 0:00:21.5]} 22. Nd4 {[%clk
0:00:22.7]} 22... Qd7 {[%clk 0:00:22.4]} 23. Nd5 {[%clk 0:00:18.8]} 23... Bxd5
{[%clk 0:00:22.8]} 24. exd5 {[%clk 0:00:20.7]} 24... Rxa4 {[%clk 0:00:19.6]} 25.
b3 {[%clk 0:00:21.8]} 25... Ra5 {[%clk 0:00:20]} 26. Qxa5 {[%clk 0:00:21.9]} 1-0

[Event "*** Titled Tuesday Blitz"]
[Site "Chess.com"]
[Date "2019.02.05"]
[Round "1"]
[White "regular_legs"]
[Black "indfraeng"]
[Result "1-0"]
[WhiteElo "2483"]
[BlackElo "1990"]
[TimeControl "180+2"]
[EndTime "13:07:30 PST"]
[Termination "regular_legs won by checkmate"]

1. d4 {[%clk 0:03:01.4]} 1... Nf6 {[%clk 0:03:00.2]} 2. c4 {[%clk 0:03:01]} 2...
c5 {[%clk 0:03:00.5]} 3. d5 {[%clk 0:02:59.4]} 3... e6 {[%clk 0:03:01.4]} 4. Nc3
{[%clk 0:02:59.7]} 4... exd5 {[%clk 0:03:01.3]} 5. cxd5 {[%clk 0:03:01.6]} 5...
d6 {[%clk 0:03:02.6]} 6. e4 {[%clk 0:03:03.2]} 6... g6 {[%clk 0:03:03.5]} 7.
Nge2 {[%clk 0:03:04.7]} 7... Bg7 {[%clk 0:03:04.5]} 8. Ng3 {[%clk 0:03:06.3]}
8... O-O {[%clk 0:03:05.1]} 9. Be2 {[%clk 0:03:07.8]} 9... a6 {[%clk 0:03:04.8]}
10. a4 {[%clk 0:03:08.1]} 10... Nbd7 {[%clk 0:03:05.6]} 11. O-O {[%clk
0:03:08.1]} 11... Ne8 {[%clk 0:02:55.9]} 12. f4 {[%clk 0:03:03.5]} 12... f5
{[%clk 0:02:43]} 13. exf5 {[%clk 0:02:26.1]} 13... gxf5 {[%clk 0:02:42.2]} 14.
Bd3 {[%clk 0:02:27.6]} 14... Nb6 {[%clk 0:02:40.2]} 15. a5 {[%clk 0:02:11.2]}
15... Nd7 {[%clk 0:01:31.4]} 16. Nxf5 {[%clk 0:02:11.3]} 16... c4 {[%clk
0:01:31.4]} 17. Bc2 {[%clk 0:02:10.3]} 17... Nc5 {[%clk 0:01:29.4]} 18. Nxg7
{[%clk 0:01:59.9]} 18... Nxg7 {[%clk 0:01:29.3]} 19. Be3 {[%clk 0:02:00.3]}
19... Nf5 {[%clk 0:01:23.1]} 20. Bf2 {[%clk 0:01:52.6]} 20... b5 {[%clk
0:01:11]} 21. axb6 {[%clk 0:01:48.1]} 21... Qxb6 {[%clk 0:01:10.2]} 22. Na4
{[%clk 0:01:49.4]} 22... Qc7 {[%clk 0:01:06.5]} 23. Nxc5 {[%clk 0:01:49.8]}
23... dxc5 {[%clk 0:01:07.4]} 24. Qd2 {[%clk 0:01:40.6]} 24... Bb7 {[%clk
0:01:01.3]} 25. Ra5 {[%clk 0:01:38.2]} 25... Rad8 {[%clk 0:00:54.9]} 26. Rxc5
{[%clk 0:01:38.7]} 26... Qg7 {[%clk 0:00:52.4]} 27. Rxc4 {[%clk 0:01:31.3]}
27... Bxd5 {[%clk 0:00:49.9]} 28. Re4 {[%clk 0:01:25.3]} 28... Bxe4 {[%clk
0:00:45.4]} 29. Bb3+ {[%clk 0:01:26.1]} 29... Kh8 {[%clk 0:00:35.1]} 30. Qc3
{[%clk 0:01:27]} 30... Qxc3 {[%clk 0:00:32.3]} 31. bxc3 {[%clk 0:01:28.9]} 31...
Rd3 {[%clk 0:00:30]} 32. Bc4 {[%clk 0:01:25.7]} 32... Rxc3 {[%clk 0:00:30.1]}
33. Bxa6 {[%clk 0:01:27.1]} 33... Rg8 {[%clk 0:00:30.1]} 34. g3 {[%clk
0:01:26.9]} 34... Rc2 {[%clk 0:00:29.4]} 35. Re1 {[%clk 0:01:23.6]} 35... Bf3
{[%clk 0:00:27.2]} 36. Bd3 {[%clk 0:01:22.5]} 36... Re2 {[%clk 0:00:21.8]} 37.
Bxe2 {[%clk 0:01:21.8]} 37... Bxe2 {[%clk 0:00:23.7]} 38. Rxe2 {[%clk
0:01:22.9]} 38... Rd8 {[%clk 0:00:24.6]} 39. Kg2 {[%clk 0:01:23]} 39... Rc8
{[%clk 0:00:22.6]} 40. Re5 {[%clk 0:01:23]} 40... Nh6 {[%clk 0:00:21.9]} 41. Rg5
{[%clk 0:01:22.9]} 41... Nf7 {[%clk 0:00:22.3]} 42. Bd4+ {[%clk 0:01:23]} 42...
Ne5 {[%clk 0:00:22.4]} 43. Bxe5# {[%clk 0:01:24]} 1-0

[Event "*** Titled Tuesday Blitz"]
[Site "Chess.com"]
[Date "2019.02.05"]
[Round "1"]
[White "yuki_chess123"]
[Black "Mikhail_Golubev"]
[Result "1-0"]
[WhiteElo "1953"]
[BlackElo "2458"]
[TimeControl "180+2"]
[EndTime "13:07:34 PST"]
[Termination "yuki_chess123 won by checkmate"]

1. e4 {[%clk 0:03:01.8]} 1... c5 {[%clk 0:03:00.4]} 2. Nf3 {[%clk 0:03:02.4]}
2... d6 {[%clk 0:03:01.6]} 3. Bb5+ {[%clk 0:03:03.2]} 3... Bd7 {[%clk
0:03:01.7]} 4. Bxd7+ {[%clk 0:03:04.1]} 4... Qxd7 {[%clk 0:03:02.7]} 5. O-O
{[%clk 0:03:05.5]} 5... Nf6 {[%clk 0:03:02.8]} 6. d3 {[%clk 0:03:05.8]} 6... Nc6
{[%clk 0:03:01.2]} 7. Nc3 {[%clk 0:03:06.1]} 7... g6 {[%clk 0:03:01.4]} 8. Ng5
{[%clk 0:03:06.7]} 8... h6 {[%clk 0:02:55.7]} 9. Nh3 {[%clk 0:03:04.4]} 9... g5
{[%clk 0:02:53.1]} 10. f4 {[%clk 0:03:05.3]} 10... gxf4 {[%clk 0:02:52.6]} 11.
Nxf4 {[%clk 0:03:06]} 11... Ne5 {[%clk 0:02:47.1]} 12. Ncd5 {[%clk 0:03:05.7]}
12... Nxd5 {[%clk 0:02:43.1]} 13. Nxd5 {[%clk 0:03:05.8]} 13... Rg8 {[%clk
0:02:40.7]} 14. Bf4 {[%clk 0:03:04.9]} 14... Bg7 {[%clk 0:02:15.5]} 15. c3
{[%clk 0:02:55.9]} 15... e6 {[%clk 0:01:53.7]} 16. Bxe5 {[%clk 0:02:49.1]} 16...
dxe5 {[%clk 0:01:53.4]} 17. Ne3 {[%clk 0:02:43.2]} 17... Rd8 {[%clk 0:01:48.8]}
18. Qf3 {[%clk 0:02:43]} 18... Qe7 {[%clk 0:01:32.7]} 19. Rad1 {[%clk 0:02:42]}
19... Rd7 {[%clk 0:01:27.6]} 20. Kh1 {[%clk 0:02:40.3]} 20... Qg5 {[%clk
0:01:24.4]} 21. Nc4 {[%clk 0:02:35.6]} 21... h5 {[%clk 0:01:24]} 22. Nd6+ {[%clk
0:02:17.1]} 22... Ke7 {[%clk 0:01:06.7]} 23. Qxf7+ {[%clk 0:02:07]} 23... Kxd6
{[%clk 0:01:05.2]} 24. Qxg8 {[%clk 0:02:07.6]} 24... h4 {[%clk 0:00:59.7]} 25.
h3 {[%clk 0:02:04.9]} 25... Rd8 {[%clk 0:00:57.3]} 26. Qf7 {[%clk 0:02:02.3]}
26... Rd7 {[%clk 0:00:55.5]} 27. Qf2 {[%clk 0:01:58.9]} 27... b6 {[%clk
0:00:52.9]} 28. a3 {[%clk 0:01:31.8]} 28... Kc7 {[%clk 0:00:43.5]} 29. b4 {[%clk
0:01:31.6]} 29... cxb4 {[%clk 0:00:44.1]} 30. axb4 {[%clk 0:01:32.6]} 30... Bh6
{[%clk 0:00:43.9]} 31. Qa2 {[%clk 0:01:29.4]} 31... Rg7 {[%clk 0:00:38.1]} 32.
Qxa7+ {[%clk 0:01:23.5]} 32... Kd6 {[%clk 0:00:27.8]} 33. Qa2 {[%clk 0:01:24.4]}
33... Qh5 {[%clk 0:00:21.5]} 34. Rf3 {[%clk 0:01:21.7]} 34... Bf4 {[%clk
0:00:20.5]} 35. d4 {[%clk 0:01:15.2]} 35... Qg5 {[%clk 0:00:20.9]} 36. dxe5+
{[%clk 0:01:14.8]} 36... Kxe5 {[%clk 0:00:22]} 37. Qf2 {[%clk 0:01:03.9]} 37...
Ra7 {[%clk 0:00:17.8]} 38. Qd4# {[%clk 0:01:04]} 1-0

[Event "*** Titled Tuesday Blitz"]
[Site "Chess.com"]
[Date "2019.02.05"]
[Round "1"]
[White "otrov-11"]
[Black "GukeshDommaraju"]
[Result "0-1"]
[WhiteElo "2311"]
[BlackElo "2686"]
[TimeControl "180+2"]
[EndTime "13:07:39 PST"]
[Termination "GukeshDommaraju won by resignation"]

1. d4 {[%clk 0:02:59.2]} 1... d5 {[%clk 0:03:00.6]} 2. c4 {[%clk 0:02:59.3]}
2... c6 {[%clk 0:03:01.8]} 3. cxd5 {[%clk 0:02:59.8]} 3... cxd5 {[%clk 0:03:03]}
4. Bf4 {[%clk 0:03:01.4]} 4... Nc6 {[%clk 0:03:03.3]} 5. Nc3 {[%clk 0:03:02.2]}
5... Nf6 {[%clk 0:03:03.1]} 6. e3 {[%clk 0:02:59.7]} 6... Bg4 {[%clk 0:03:00.9]}
7. Nf3 {[%clk 0:02:41.1]} 7... g6 {[%clk 0:02:49.6]} 8. Be2 {[%clk 0:02:31.8]}
8... Bg7 {[%clk 0:02:49.9]} 9. O-O {[%clk 0:02:30.5]} 9... O-O {[%clk
0:02:49.3]} 10. h3 {[%clk 0:02:30.3]} 10... Bd7 {[%clk 0:02:47.7]} 11. Rc1
{[%clk 0:02:27.5]} 11... a6 {[%clk 0:02:45.8]} 12. Na4 {[%clk 0:01:58.7]} 12...
e6 {[%clk 0:02:37.3]} 13. a3 {[%clk 0:01:45.9]} 13... Ne4 {[%clk 0:02:30.8]} 14.
b4 {[%clk 0:01:28.4]} 14... b6 {[%clk 0:02:00.5]} 15. Bd3 {[%clk 0:01:11]} 15...
a5 {[%clk 0:01:55.4]} 16. b5 {[%clk 0:01:05.3]} 16... Na7 {[%clk 0:01:53.4]} 17.
Bc7 {[%clk 0:01:06.3]} 17... Qe7 {[%clk 0:01:54.4]} 18. Nxb6 {[%clk 0:01:06.3]}
18... Bxb5 {[%clk 0:01:54.6]} 19. Nxa8 {[%clk 0:01:05.9]} 19... Rxa8 {[%clk
0:01:55.2]} 20. Bxa5 {[%clk 0:01:01.1]} 20... Qxa3 {[%clk 0:01:51.8]} 21. Bxb5
{[%clk 0:01:02.1]} 21... Nxb5 {[%clk 0:01:53.1]} 22. Bb6 {[%clk 0:01:02.3]}
22... Nbc3 {[%clk 0:01:52.1]} 23. Qc2 {[%clk 0:00:58]} 23... Qa6 {[%clk
0:01:52.1]} 24. Rb1 {[%clk 0:00:48.2]} 24... Rc8 {[%clk 0:01:44.8]} 25. Bc5
{[%clk 0:00:24.5]} 25... Nxb1 {[%clk 0:01:41.5]} 26. Rxb1 {[%clk 0:00:26.4]}
26... Nxc5 {[%clk 0:01:40.5]} 27. dxc5 {[%clk 0:00:28.3]} 27... Qc6 {[%clk
0:01:41.9]} 28. Rc1 {[%clk 0:00:28.7]} 28... Bf8 {[%clk 0:01:42.8]} 29. Nd4
{[%clk 0:00:29.9]} 29... Qxc5 {[%clk 0:01:43.8]} 30. Qxc5 {[%clk 0:00:28.4]}
30... Rxc5 {[%clk 0:01:45]} 31. Rb1 {[%clk 0:00:29.7]} 31... Rc7 {[%clk
0:01:45.1]} 32. Rb8 {[%clk 0:00:30.3]} 32... Kg7 {[%clk 0:01:45]} 33. g3 {[%clk
0:00:30.6]} 33... h5 {[%clk 0:01:44.9]} 34. Kg2 {[%clk 0:00:31.6]} 34... Be7
{[%clk 0:01:45.5]} 35. Ra8 {[%clk 0:00:31.3]} 35... Bf6 {[%clk 0:01:46.4]} 36.
Nf3 {[%clk 0:00:30.7]} 36... Rd7 {[%clk 0:01:44.2]} 37. Re8 {[%clk 0:00:31.6]}
37... Bd8 {[%clk 0:01:40.7]} 38. Ne5 {[%clk 0:00:27.2]} 38... Rd6 {[%clk
0:01:41.7]} 39. g4 {[%clk 0:00:21.6]} 39... hxg4 {[%clk 0:01:40.9]} 40. hxg4
{[%clk 0:00:23.5]} 40... f6 {[%clk 0:01:39.1]} 41. Nf3 {[%clk 0:00:24.3]} 41...
e5 {[%clk 0:01:30.5]} 42. g5 {[%clk 0:00:24.7]} 42... e4 {[%clk 0:01:31.5]} 43.
gxf6+ {[%clk 0:00:25.5]} 43... Kf7 {[%clk 0:01:32.6]} 44. Ng5+ {[%clk
0:00:15.2]} 44... Kxe8 {[%clk 0:01:31.5]} 45. f7+ {[%clk 0:00:17.1]} 45... Kf8
{[%clk 0:01:32.3]} 0-1

[Event "*** Titled Tuesday Blitz"]
[Site "Chess.com"]
[Date "2019.02.05"]
[Round "1"]
[White "TakeMyPieces97"]
[Black "DoHoChess"]
[Result "0-1"]
[WhiteElo "2260"]
[BlackElo "2620"]
[TimeControl "180+2"]
[EndTime "13:07:39 PST"]
[Termination "DoHoChess won by checkmate"]

1. e4 {[%clk 0:03:01.1]} 1... e5 {[%clk 0:03:00.7]} 2. Nc3 {[%clk 0:03:01.3]}
2... Nf6 {[%clk 0:03:01.3]} 3. f4 {[%clk 0:02:58.1]} 3... d5 {[%clk 0:03:02.1]}
4. fxe5 {[%clk 0:02:59.1]} 4... Nxe4 {[%clk 0:03:02.9]} 5. Qf3 {[%clk
0:03:00.5]} 5... Nc6 {[%clk 0:03:02]} 6. Bb5 {[%clk 0:03:01]} 6... Nxc3 {[%clk
0:03:01.6]} 7. dxc3 {[%clk 0:03:02.9]} 7... Qh4+ {[%clk 0:03:02.4]} 8. g3 {[%clk
0:03:04.5]} 8... Qe4+ {[%clk 0:03:04]} 9. Qxe4 {[%clk 0:03:06]} 9... dxe4 {[%clk
0:03:05.9]} 10. Bxc6+ {[%clk 0:03:07.4]} 10... bxc6 {[%clk 0:03:06.6]} 11. Be3
{[%clk 0:03:05.8]} 11... h5 {[%clk 0:02:51.7]} 12. Ne2 {[%clk 0:03:00.4]} 12...
Bg4 {[%clk 0:02:51]} 13. Kf2 {[%clk 0:02:50.1]} 13... h4 {[%clk 0:02:49.5]} 14.
gxh4 {[%clk 0:02:39.9]} 14... Be7 {[%clk 0:02:44.2]} 15. Ng3 {[%clk 0:02:38.4]}
15... Rxh4 {[%clk 0:02:36.1]} 16. Nxe4 {[%clk 0:02:12.1]} 16... Bf5 {[%clk
0:02:34.4]} 17. Ng3 {[%clk 0:01:47.9]} 17... Bxc2 {[%clk 0:02:25]} 18. Rac1
{[%clk 0:01:43.8]} 18... Bg6 {[%clk 0:02:20.9]} 19. Rcd1 {[%clk 0:01:43.9]}
19... a5 {[%clk 0:02:11]} 20. Rd4 {[%clk 0:01:39.7]} 20... Rxd4 {[%clk
0:02:07.3]} 21. cxd4 {[%clk 0:01:35.4]} 21... Rb8 {[%clk 0:01:55.4]} 22. b3
{[%clk 0:01:30.3]} 22... a4 {[%clk 0:01:56]} 23. bxa4 {[%clk 0:01:24.5]} 23...
Rb2+ {[%clk 0:01:57.4]} 24. Kf3 {[%clk 0:01:24.9]} 24... Rxa2 {[%clk 0:01:59]}
25. Rc1 {[%clk 0:01:24.6]} 25... Kd7 {[%clk 0:01:52.3]} 26. Rc4 {[%clk
0:01:14.6]} 26... Rxh2 {[%clk 0:01:45.2]} 27. Bf2 {[%clk 0:01:06]} 27... Rh8
{[%clk 0:01:41.2]} 28. a5 {[%clk 0:01:05.8]} 28... Ra8 {[%clk 0:01:37.4]} 29.
Ra4 {[%clk 0:01:06.1]} 29... Bc2 {[%clk 0:01:33.5]} 30. Ra2 {[%clk 0:01:04.3]}
30... Bb3 {[%clk 0:01:32.6]} 31. Ra1 {[%clk 0:01:05]} 31... Bd5+ {[%clk
0:01:22.4]} 32. Kf4 {[%clk 0:01:05.5]} 32... Bb4 {[%clk 0:01:17.5]} 33. a6
{[%clk 0:00:53.5]} 33... Bd2+ {[%clk 0:01:17.8]} 34. Kf5 {[%clk 0:00:44.5]}
34... Bc4 {[%clk 0:01:07.7]} 35. a7 {[%clk 0:00:43.4]} 35... Kc8 {[%clk
0:00:53]} 36. Ne4 {[%clk 0:00:17.1]} 36... Be6# {[%clk 0:00:53.6]} 0-1

[Event "*** Titled Tuesday Blitz"]
[Site "Chess.com"]
[Date "2019.02.05"]
[Round "1"]
[White "Dr-Bassem"]
[Black "PlotnikovPavel"]
[Result "1-0"]
[WhiteElo "2772"]
[BlackElo "2384"]
[TimeControl "180+2"]
[EndTime "13:07:40 PST"]
[Termination "Dr-Bassem won on time"]

1. e4 {[%clk 0:03:01.9]} 1... e6 {[%clk 0:03:00.9]} 2. d3 {[%clk 0:03:02.3]}
2... d5 {[%clk 0:03:02.3]} 3. Nd2 {[%clk 0:03:03.9]} 3... c5 {[%clk 0:03:00.9]}
4. Ngf3 {[%clk 0:03:05.2]} 4... Nc6 {[%clk 0:03:02.2]} 5. g3 {[%clk 0:03:05.9]}
5... g6 {[%clk 0:03:03.1]} 6. Bg2 {[%clk 0:03:07.3]} 6... Bg7 {[%clk 0:03:04.5]}
7. O-O {[%clk 0:03:08.8]} 7... Nge7 {[%clk 0:03:05.5]} 8. Re1 {[%clk 0:03:10.4]}
8... O-O {[%clk 0:03:06.8]} 9. h4 {[%clk 0:03:11.3]} 9... h6 {[%clk 0:02:45.5]}
10. e5 {[%clk 0:03:11.5]} 10... Nf5 {[%clk 0:02:42.5]} 11. Nf1 {[%clk 0:03:10]}
11... f6 {[%clk 0:02:21.3]} 12. exf6 {[%clk 0:03:05.4]} 12... Qxf6 {[%clk
0:02:23.2]} 13. c3 {[%clk 0:02:56.1]} 13... Kh7 {[%clk 0:02:07.3]} 14. N1h2
{[%clk 0:02:53.9]} 14... e5 {[%clk 0:01:54.4]} 15. Ng4 {[%clk 0:02:42.3]} 15...
Qd6 {[%clk 0:01:54.7]} 16. Nd2 {[%clk 0:02:16.4]} 16... Bd7 {[%clk 0:01:26.7]}
17. c4 {[%clk 0:02:16.7]} 17... Nb4 {[%clk 0:01:18.9]} 18. cxd5 {[%clk
0:02:12.5]} 18... Nd4 {[%clk 0:01:05]} 19. Nc4 {[%clk 0:02:08.4]} 19... Qa6
{[%clk 0:00:57.9]} 20. Ngxe5 {[%clk 0:01:55.4]} 20... Bf5 {[%clk 0:00:52.4]} 21.
g4 {[%clk 0:01:49.2]} 21... Bxd3 {[%clk 0:00:31]} 22. Nxd3 {[%clk 0:01:36.2]}
22... Qxc4 {[%clk 0:00:31.3]} 23. Nxb4 {[%clk 0:01:33.2]} 23... cxb4 {[%clk
0:00:27.5]} 24. Be3 {[%clk 0:01:03.2]} 24... Rae8 {[%clk 0:00:18.5]} 25. Rc1
{[%clk 0:00:52.5]} 25... Qxa2 {[%clk 0:00:13.7]} 26. Rc7 {[%clk 0:00:48.4]}
26... Nb5 {[%clk 0:00:07.4]} 27. Rxb7 {[%clk 0:00:46.4]} 27... Nd6 {[%clk
0:00:07.9]} 28. Rd7 {[%clk 0:00:44.5]} 28... Nc4 {[%clk 0:00:06.3]} 29. Bd4
{[%clk 0:00:42.5]} 29... Rxe1+ {[%clk 0:00:02.2]} 30. Qxe1 {[%clk 0:00:44.4]}
1-0

[Event "*** Titled Tuesday Blitz"]
[Site "Chess.com"]
[Date "2019.02.05"]
[Round "1"]
[White "AbdAlAgathos"]
[Black "Last7Samurai"]
[Result "0-1"]
[WhiteElo "2323"]
[BlackElo "2711"]
[TimeControl "180+2"]
[EndTime "13:07:52 PST"]
[Termination "Last7Samurai won by resignation"]

1. e4 {[%clk 0:03:01.9]} 1... e5 {[%clk 0:02:56.8]} 2. Nf3 {[%clk 0:03:00.5]}
2... Nc6 {[%clk 0:02:57.6]} 3. Bb5 {[%clk 0:03:01.6]} 3... a6 {[%clk 0:02:58.1]}
4. Ba4 {[%clk 0:03:02.5]} 4... g6 {[%clk 0:02:58.9]} 5. d4 {[%clk 0:02:59.7]}
5... exd4 {[%clk 0:02:55.1]} 6. c3 {[%clk 0:03:00.6]} 6... Bg7 {[%clk
0:02:34.3]} 7. cxd4 {[%clk 0:03:00.2]} 7... b5 {[%clk 0:02:35.7]} 8. Bb3 {[%clk
0:02:59.9]} 8... Nge7 {[%clk 0:02:36.2]} 9. O-O {[%clk 0:02:54.1]} 9... d6
{[%clk 0:02:36.3]} 10. h3 {[%clk 0:02:48]} 10... O-O {[%clk 0:02:36.4]} 11. Nc3
{[%clk 0:02:29.3]} 11... Na5 {[%clk 0:02:36.4]} 12. Bc2 {[%clk 0:02:29.8]} 12...
c5 {[%clk 0:02:37.1]} 13. Bg5 {[%clk 0:02:16.1]} 13... h6 {[%clk 0:02:28.7]} 14.
Bh4 {[%clk 0:02:11.7]} 14... g5 {[%clk 0:02:28.1]} 15. Bg3 {[%clk 0:02:12.4]}
15... Nc4 {[%clk 0:02:22.1]} 16. b3 {[%clk 0:01:51.6]} 16... Na3 {[%clk
0:02:17.9]} 17. Rc1 {[%clk 0:01:46.7]} 17... Nxc2 {[%clk 0:02:06.7]} 18. Rxc2
{[%clk 0:01:48.6]} 18... f5 {[%clk 0:02:02.2]} 19. exf5 {[%clk 0:01:41.1]} 19...
Bxf5 {[%clk 0:01:59.7]} 20. Re2 {[%clk 0:01:32.6]} 20... c4 {[%clk 0:01:57.5]}
21. bxc4 {[%clk 0:01:12.2]} 21... bxc4 {[%clk 0:01:59.4]} 22. Rfe1 {[%clk
0:01:09.8]} 22... Ng6 {[%clk 0:01:59.8]} 23. Nd5 {[%clk 0:01:06.1]} 23... Kh8
{[%clk 0:01:45]} 24. Re6 {[%clk 0:00:51]} 24... Bxe6 {[%clk 0:01:39.9]} 25. Rxe6
{[%clk 0:00:52.9]} 25... Nf4 {[%clk 0:01:35.8]} 26. Bxf4 {[%clk 0:00:44.2]}
26... gxf4 {[%clk 0:01:37.7]} 27. Qc2 {[%clk 0:00:40.6]} 27... Qd7 {[%clk
0:01:29.6]} 28. Qg6 {[%clk 0:00:35.9]} 28... Qf7 {[%clk 0:01:29.1]} 29. Nh4
{[%clk 0:00:30.3]} 29... Rac8 {[%clk 0:00:55.3]} 30. Qg4 {[%clk 0:00:30.5]}
30... Rfe8 {[%clk 0:00:53.9]} 31. Ng6+ {[%clk 0:00:28]} 31... Kh7 {[%clk
0:00:50.1]} 32. Ngxf4 {[%clk 0:00:28]} 32... Rxe6 {[%clk 0:00:36.5]} 33. Nxe6
{[%clk 0:00:29.9]} 33... Re8 {[%clk 0:00:36.8]} 34. Qe4+ {[%clk 0:00:10.8]}
34... Qg6 {[%clk 0:00:34.8]} 35. Ndf4 {[%clk 0:00:12.7]} 0-1

[Event "*** Titled Tuesday Blitz"]
[Site "Chess.com"]
[Date "2019.02.05"]
[Round "1"]
[White "PelinGorki"]
[Black "Bigfish1995"]
[Result "0-1"]
[WhiteElo "2456"]
[BlackElo "2969"]
[TimeControl "180+2"]
[EndTime "13:07:56 PST"]
[Termination "Bigfish1995 won by resignation"]

1. e4 {[%clk 0:03:01.9]} 1... c5 {[%clk 0:02:56.9]} 2. a3 {[%clk 0:02:59.7]}
2... Nf6 {[%clk 0:02:52.2]} 3. e5 {[%clk 0:03:00.1]} 3... Nd5 {[%clk 0:02:52.9]}
4. b4 {[%clk 0:02:59.8]} 4... e6 {[%clk 0:02:51.5]} 5. c4 {[%clk 0:02:52.3]}
5... Nf4 {[%clk 0:02:42.5]} 6. d4 {[%clk 0:02:42.9]} 6... Ng6 {[%clk 0:02:24.8]}
7. bxc5 {[%clk 0:02:42.8]} 7... b6 {[%clk 0:02:26]} 8. cxb6 {[%clk 0:02:40.5]}
8... axb6 {[%clk 0:02:20.2]} 9. Nf3 {[%clk 0:02:35.8]} 9... Bb7 {[%clk
0:02:21.3]} 10. Be2 {[%clk 0:02:35.7]} 10... d6 {[%clk 0:02:03.4]} 11. exd6
{[%clk 0:02:35]} 11... Bxd6 {[%clk 0:02:04.6]} 12. Nc3 {[%clk 0:02:22.9]} 12...
O-O {[%clk 0:01:44.1]} 13. h4 {[%clk 0:02:22.5]} 13... Nf4 {[%clk 0:01:43.4]}
14. Bxf4 {[%clk 0:02:22.2]} 14... Bxf4 {[%clk 0:01:44.5]} 15. Qd3 {[%clk
0:02:16.1]} 15... Nd7 {[%clk 0:01:42.4]} 16. Ng5 {[%clk 0:02:14.6]} 16... Nf6
{[%clk 0:01:34.7]} 17. Bf3 {[%clk 0:01:58.4]} 17... Bxf3 {[%clk 0:01:28.9]} 18.
Nxf3 {[%clk 0:01:53.4]} 18... Bd6 {[%clk 0:01:13.3]} 19. h5 {[%clk 0:01:51.3]}
19... h6 {[%clk 0:01:09.6]} 20. Nb5 {[%clk 0:01:42.9]} 20... Ra5 {[%clk
0:01:00.4]} 21. O-O {[%clk 0:01:24]} 21... Nxh5 {[%clk 0:00:59.2]} 22. Rfe1
{[%clk 0:01:22.9]} 22... Bb8 {[%clk 0:00:49.6]} 23. Ne5 {[%clk 0:01:18.8]} 23...
Nf4 {[%clk 0:00:41.3]} 24. Qf3 {[%clk 0:01:13.5]} 24... Bxe5 {[%clk 0:00:29.3]}
25. dxe5 {[%clk 0:01:03.9]} 25... Qg5 {[%clk 0:00:28.6]} 26. Re4 {[%clk
0:01:02.7]} 26... Ng6 {[%clk 0:00:27.4]} 27. Rae1 {[%clk 0:01:00.2]} 27... Rd8
{[%clk 0:00:22.1]} 28. Nd6 {[%clk 0:00:52.7]} 28... Nxe5 {[%clk 0:00:22.5]} 29.
Rxe5 {[%clk 0:00:53.7]} 29... Rxe5 {[%clk 0:00:23.6]} 30. Rxe5 {[%clk 0:00:29]}
30... Qxe5 {[%clk 0:00:24.7]} 31. Nxf7 {[%clk 0:00:30.9]} 31... Qa1+ {[%clk
0:00:25.8]} 32. Kh2 {[%clk 0:00:32.5]} 32... Rf8 {[%clk 0:00:27.1]} 33. Nxh6+
{[%clk 0:00:29.2]} 33... gxh6 {[%clk 0:00:28.3]} 34. Qg4+ {[%clk 0:00:30.8]}
34... Qg7 {[%clk 0:00:29.5]} 35. Qxe6+ {[%clk 0:00:32.4]} 35... Kh8 {[%clk
0:00:30.8]} 36. Qxb6 {[%clk 0:00:32.6]} 36... Qf6 {[%clk 0:00:30.7]} 37. Qe3
{[%clk 0:00:30.3]} 37... Qf4+ {[%clk 0:00:31.1]} 38. g3 {[%clk 0:00:29.1]} 38...
Qxe3 {[%clk 0:00:31.8]} 39. fxe3 {[%clk 0:00:31]} 39... Rc8 {[%clk 0:00:32.5]}
0-1